[Event "EYCC 2017"]
[Site "Mamaia"]
[Date "2017.09.08"]
[Round "4"]
[White "Raccanello, Marianna"]
[Black "Srdanovic, Jovana"]
[Result "0-1"]
[ECO "B43"]
[WhiteElo "1906"]
[BlackElo "1994"]
[Annotator "NA"]
[PlyCount "62"]
[EventDate "2017.??.??"]
[EventType "swiss"]
[EventCountry "ROU"]
[SourceTitle "playchess.com"]
[Source "ChessBase"]
[SourceQuality "1"]
[TimeControl "40/5400+30:1800+30"]

1. e4 {[%emt 0:00:00]} c5 {[%emt 0:00:07]} 2. Nf3 {[%emt 0:00:00]} e6 {[%emt 0:00:05]} 3. d4 {[%emt 0:00:00]} cxd4 {[%emt 0:00:20]} 4. Nxd4 {[%emt 0:00:00]} a6 {[%emt 0:00:06]} 5. Nc3 {[%emt 0:01:01]} b5 {[%emt 0:00:14]} 6. Bd3 {[%emt 0:00:48]} Qb6 {[%emt 0:00:26]} 7. Nb3 {[%emt 0:01:56]} Qc7 {[%emt 0:00:20]} 8. O-O {[%emt 0:00:53]} Bb7 {[%emt 0:02:18]} 9. a3 {[%emt 0:04:16]} Be7 {[%emt 0:03:36]} 10. Be3 {[%emt 0:00:14]} d6 {[%emt 0:00:00]} 11. f4 {[%emt 0:00:19]} Nf6 {[%emt 0:01:10]} 12. Qe2 {[%emt 0:08:54]} Nbd7 {[%emt 0:03:08]} 13. Rad1 {[%emt 0:00:27]} h5 {[%emt 0:07:25]} 14. Kh1 {[%emt 0:13:40]} h4 {[%emt 0:03:07]} 15. Nd4 {[%emt 0:10:15]} Rc8 {[%emt 0:14:49]} 16. Rfe1 {[%emt 0:11:52]} Nc5 {[%emt 0:04:49]} 17. Bg1 {[%emt 0:01:51]} Qb8 {[%emt 0:16:16]} 18. Nf3 {[%emt 0:06:13]} Nh5 {[%emt 0:06:59]} 19. Be3 {[%emt 0:05:53]} Qa8 {[%emt 0:06:49]} 20. Bd2 {[%emt 0:01:36]} Kf8 {[%emt 0:06:15]} 21. e5 {[%emt 0:05:25]} h3 {[%emt 0:01:40]} 22. b4 {[%emt 0:02:57]} hxg2+ {[%emt 0:00:38]} 23. Kxg2 {[%emt 0:00:06]} Nxd3 {[%emt 0:00:09]} 24. cxd3 {[%emt 0:00:41]} Rxc3 {[%emt 0:00:40]} 25. Rf1 {[%emt 0:01:30]} Rc2 {[%emt 0:00:21]} 26. Qe3 {[%emt 0:00:38]} g6 {[%emt 0:01:29]} 27. Kg1 {[%emt 0:01:12]} Bxf3 {[%emt 0:00:19]} 28. Rxf3 {[%emt 0:00:05]} Ng7 {[%emt 0:00:14]} 29. Rdf1 {[%emt 0:04:31]} Nf5 {[%emt 0:00:15]} 30. Qe1 {[%emt 0:00:50]} Qd5 {[%emt 0:00:53]} 31. Bc3 {[%emt 0:02:04]} Rhxh2 {[%emt 0:00:18]} 0-1

[Event "EYCC 2017"]
[Site "Mamaia"]
[Date "2017.09.08"]
[Round "4"]
[White "Makkar, Rajat"]
[Black "Cohen, Elad"]
[Result "1-0"]
[ECO "E16"]
[WhiteElo "1880"]
[BlackElo "1668"]
[Annotator "NA"]
[PlyCount "129"]
[EventDate "2017.??.??"]
[EventType "swiss"]
[EventCountry "ROU"]
[SourceTitle "playchess.com"]
[Source "ChessBase"]
[SourceQuality "1"]
[TimeControl "40/5400+30:1800+30"]

1. d4 {[%emt 0:00:00]} Nf6 {[%emt 0:00:09]} 2. c4 {[%emt 0:00:00]} e6 {[%emt 0:00:08]} 3. Nf3 {[%emt 0:00:18]} Bb4+ {[%emt 0:00:16]} 4. Bd2 {[%emt 0:00:51]} Qe7 {[%emt 0:00:19]} 5. a3 {[%emt 0:04:02]} Bxd2+ {[%emt 0:03:27]} 6. Qxd2 {[%emt 0:00:27]} b6 {[%emt 0:01:42]} 7. Nc3 {[%emt 0:03:13]} Bb7 {[%emt 0:00:29]} 8. g3 {[%emt 0:00:51]} d6 {[%emt 0:01:52]} 9. Bg2 {[%emt 0:01:01]} Nbd7 {[%emt 0:00:26]} 10. O-O {[%emt 0:02:09]} O-O {[%emt 0:00:50]} 11. Rfe1 {[%emt 0:03:04]} Rad8 {[%emt 0:05:24]} 12. e4 {[%emt 0:04:38]} Rfe8 {[%emt 0:10:12]} 13. Qg5 {[%emt 0:03:01]} e5 {[%emt 0:03:45]} 14. Rad1 {[%emt 0:05:04]} Qf8 {[%emt 0:10:38]} 15. d5 {[%emt 0:10:48]} h6 {[%emt 0:08:46]} 16. Qd2 {[%emt 0:03:08]} a6 {[%emt 0:06:33]} 17. b4 {[%emt 0:03:23]} g5 {[%emt 0:06:00]} 18. Rc1 {[%emt 0:04:10]} a5 {[%emt 0:13:00]} 19. Nb5 {[%emt 0:06:47]} Rc8 {[%emt 0:03:09]} 20. Qb2 {[%emt 0:03:43]} axb4 {[%emt 0:04:15]} 21. axb4 {[%emt 0:00:16]} c6 {[%emt 0:00:45]} 22. Na7 {[%emt 0:00:14]} Rc7 {[%emt 0:00:29]} 23. Ra1 {[%emt 0:12:10]} Ra8 {[%emt 0:01:51]} 24. Nd2 {[%emt 0:02:38]} Nb8 {[%emt 0:07:45]} 25. Reb1 {[%emt 0:02:32]} Bc8 {[%emt 0:05:01]} 26. Nxc8 {[%emt 0:02:04]} Rxa1 {[%emt 0:00:15]} 27. Qxa1 {[%emt 0:00:01]} Qxc8 {[%emt 0:00:38]} 28. Qa8 cxd5 {[%emt 0:00:30]} 29. exd5 {[%emt 0:00:29]} Na6 {[%emt 0:01:05]} 30. Qxc8+ {[%emt 0:02:20]} Rxc8 {[%emt 0:00:02]} 31. Bh3 {[%emt 0:00:10]} Rb8 {[%emt 0:00:43]} 32. Bf1 {[%emt 0:00:25]} Nd7 {[%emt 0:00:38]} 33. Ne4 {[%emt 0:00:25]} b5 {[%emt 0:01:51]} 34. cxb5 {[%emt 0:04:53]} Nc7 {[%emt 0:00:03]} 35. Nc3 {[%emt 0:02:44]} Nb6 {[%emt 0:01:01]} 36. Rd1 {[%emt 0:00:50]} Rc8 {[%emt 0:00:19]} 37. Bh3 {[%emt 0:00:25]} Ra8 {[%emt 0:00:21]} 38. Rc1 {[%emt 0:00:52]} Ra3 {[%emt 0:00:23]} 39. Bg2 {[%emt 0:00:47]} Rb3 {[%emt 0:00:23]} 40. Bf1 {[%emt 0:00:00]} Rxb4 {[%emt 0:00:28]} 41. Na2 {[%emt 0:02:16]} Rb2 {[%emt 0:00:47]} 42. Rxc7 {[%emt 0:00:21]} Rxa2 {[%emt 0:00:35]} 43. Rc6 {[%emt 0:00:24]} Nxd5 {[%emt 0:01:22]} 44. Rxd6 {[%emt 0:00:38]} Nb4 {[%emt 0:03:18]} 45. b6 {[%emt 0:01:02]} Ra8 {[%emt 0:00:38]} 46. b7 {[%emt 0:00:02]} Rb8 {[%emt 0:00:25]} 47. Bg2 {[%emt 0:00:05]} Kg7 {[%emt 0:09:14]} 48. Rb6 {[%emt 0:01:18]} Nd3 {[%emt 0:00:52]} 49. Ra6 {[%emt 0:01:00]} Nc5 {[%emt 0:00:49]} 50. Ra8 {[%emt 0:00:47]} Rxb7 {[%emt 0:02:28]} 51. Bxb7 {[%emt 0:00:02]} Nxb7 {[%emt 0:00:10]} 52. Re8 {[%emt 0:00:08]} Kf6 {[%emt 0:00:22]} 53. Rb8 {[%emt 0:00:22]} Nc5 {[%emt 0:00:34]} 54. Rb6+ {[%emt 0:00:10]} Kg7 {[%emt 0:00:12]} 55. Rb5 {[%emt 0:00:07]} Nd7 {[%emt 0:00:30]} 56. Rd5 {[%emt 0:00:05]} Nf6 {[%emt 0:00:44]} 57. Rxe5 {[%emt 0:00:04]} Kg6 {[%emt 0:00:28]} 58. Ra5 {[%emt 0:00:24]} Nd7 {[%emt 0:04:27]} 59. Rd5 {[%emt 0:00:18]} Nf6 {[%emt 0:00:22]} 60. Rd6 {[%emt 0:00:02]} Kf5 {[%emt 0:00:30]} 61. Ra6 {[%emt 0:00:36]} h5 {[%emt 0:00:57]} 62. f3 {[%emt 0:00:33]} g4 {[%emt 0:00:47]} 63. f4 {[%emt 0:00:08]} Ng8 {[%emt 0:02:51]} 64. Ra5+ {[%emt 0:00:11]} Kg6 {[%emt 0:00:11]} 65. Rg5+ {[%emt 0:00:05]} 1-0

[Event "EYCC 2017"]
[Site "Mamaia"]
[Date "2017.09.08"]
[Round "4"]
[White "Biletskiy, Danylo"]
[Black "Antonica, Dragos-Andrei"]
[Result "0-1"]
[ECO "A09"]
[WhiteElo "1866"]
[BlackElo "2188"]
[Annotator "NA"]
[PlyCount "90"]
[EventDate "2017.??.??"]
[EventType "swiss"]
[EventCountry "ROU"]
[SourceTitle "playchess.com"]
[Source "ChessBase"]
[SourceQuality "1"]
[TimeControl "40/5400+30:1800+30"]

1. Nf3 {[%emt 0:00:00]} d5 {[%emt 0:00:30]} 2. c4 {[%emt 0:00:00]} d4 {[%emt 0:02:54]} 3. e3 {[%emt 0:00:00]} Nc6 {[%emt 0:03:43]} 4. d3 {[%emt 0:01:41]} e5 {[%emt 0:03:21]} 5. exd4 {[%emt 0:00:17]} exd4 {[%emt 0:00:58]} 6. Be2 {[%emt 0:02:26]} Nf6 {[%emt 0:02:51]} 7. O-O {[%emt 0:00:09]} Be7 {[%emt 0:01:53]} 8. a3 {[%emt 0:02:54]} a5 {[%emt 0:01:49]} 9. Bg5 {[%emt 0:00:20]} Nd7 {[%emt 0:08:17]} 10. Bxe7 {[%emt 0:00:26]} Qxe7 {[%emt 0:00:01]} 11. Re1 {[%emt 0:00:24]} O-O {[%emt 0:00:45]} 12. Bf1 {[%emt 0:00:34]} Qf6 {[%emt 0:05:36]} 13. Nbd2 Nc5 {[%emt 0:01:48]} 14. Ne4 {[%emt 0:03:04]} Nxe4 {[%emt 0:02:34]} 15. Rxe4 {[%emt 0:02:46]} Bf5 {[%emt 0:01:37]} 16. Re1 {[%emt 0:00:01]} Bg4 {[%emt 0:16:13]} 17. Be2 {[%emt 0:00:59]} Rfe8 {[%emt 0:00:48]} 18. Qd2 {[%emt 0:07:56]} h6 {[%emt 0:09:25]} 19. h3 {[%emt 0:02:24]} Bh5 {[%emt 0:11:28]} 20. Rab1 {[%emt 0:05:06]} Bg6 {[%emt 0:07:19]} 21. b4 {[%emt 0:05:04]} axb4 {[%emt 0:01:12]} 22. axb4 {[%emt 0:00:02]} Ne5 {[%emt 0:03:13]} 23. Nxe5 {[%emt 0:02:12]} Rxe5 {[%emt 0:00:19]} 24. Bf3 {[%emt 0:00:36]} Ra3 {[%emt 0:03:05]} 25. Be4 {[%emt 0:14:55]} Bxe4 {[%emt 0:01:15]} 26. dxe4 {[%emt 0:00:02]} Rg5 {[%emt 0:00:55]} 27. f4 {[%emt 0:01:19]} Rgg3 {[%emt 0:01:42]} 28. e5 {[%emt 0:11:25]} Qg6 {[%emt 0:02:19]} 29. f5 {[%emt 0:00:11]} Qxf5 {[%emt 0:02:25]} 30. Qxd4 {[%emt 0:00:02]} Qxh3 {[%emt 0:02:09]} 31. Qd8+ {[%emt 0:03:35]} Kh7 {[%emt 0:00:02]} 32. Rb2 {[%emt 0:00:10]} Qg4 {[%emt 0:01:40]} 33. Qd5 {[%emt 0:08:02]} Qe6 {[%emt 0:01:18]} 34. Qe4+ {[%emt 0:00:58]} Rg6 {[%emt 0:00:13]} 35. Rf2 {[%emt 0:01:58]} Rc3 {[%emt 0:00:46]} 36. c5 {[%emt 0:00:46]} c6 {[%emt 0:00:48]} 37. Rf4 {[%emt 0:03:32]} Rcg3 {[%emt 0:00:20]} 38. Re2 {[%emt 0:02:04]} R3g5 {[%emt 0:00:10]} 39. Qd3 {[%emt 0:02:21]} Rg4 {[%emt 0:00:42]} 40. Rxg4 {[%emt 0:00:00]} Qxg4 {[%emt 0:00:07]} 41. b5 {[%emt 0:10:52]} Qb4 {[%emt 0:08:51]} 42. e6 {[%emt 0:00:54]} Qxc5+ {[%emt 0:01:26]} 43. Kf1 {[%emt 0:01:44]} fxe6 {[%emt 0:02:59]} 44. bxc6 {[%emt 0:00:43]} Qxc6 {[%emt 0:02:22]} 45. Kf2 {[%emt 0:00:46]} Qxg2+ 0-1

[Event "EYCC 2017"]
[Site "Mamaia"]
[Date "2017.09.08"]
[Round "4"]
[White "Luczak, Filip"]
[Black "Tadic, Stefan"]
[Result "1-0"]
[ECO "B27"]
[WhiteElo "1866"]
[BlackElo "2074"]
[Annotator "NA RC"]
[PlyCount "39"]
[EventDate "2017.??.??"]
[EventType "swiss"]
[EventCountry "ROU"]
[SourceTitle "playchess.com"]
[Source "ChessBase"]
[SourceQuality "1"]
[TimeControl "40/5400+30:1800+30"]

1. e4 c5 2. Nf3 g6 3. d4 Bg7 4. c4 Qa5+ 5. Bd2 Qb6 6. Bc3 Nc6 7. d5 Nd4 8. e5 Nxf3+ 9. Qxf3 f6 10. Qg3 fxe5 11. Bxe5 Nf6 12. Nd2 O-O 13. Be2 e6 14. O-O Re8 15. d6 Rf8 16. f4 Qa5 17. Rad1 Rb8 18. Nb3 Qxa2 19. Ra1 Ne4 20. Rxa2 1-0

[Event "EYCC 2017"]
[Site "Mamaia"]
[Date "2017.09.08"]
[Round "4"]
[White "Zhurova, Anna"]
[Black "Obada, Ema"]
[Result "1-0"]
[ECO "C12"]
[WhiteElo "1864"]
[BlackElo "1708"]
[Annotator "NA RC"]
[PlyCount "117"]
[EventDate "2017.??.??"]
[EventType "swiss"]
[EventCountry "ROU"]
[SourceTitle "playchess.com"]
[Source "ChessBase"]
[SourceQuality "1"]
[TimeControl "40/5400+30:1800+30"]

1. e4 {[%emt 0:00:00]} e6 {[%emt 0:00:07]} 2. d4 {[%emt 0:00:09]} d5 {[%emt 0:00:07]} 3. Nc3 {[%emt 0:00:34]} Nf6 {[%emt 0:00:07]} 4. Bg5 {[%emt 0:00:22]} Bb4 {[%emt 0:00:08]} 5. e5 {[%emt 0:00:27]} h6 {[%emt 0:00:09]} 6. Bd2 {[%emt 0:00:29]} Bxc3 {[%emt 0:00:22]} 7. bxc3 {[%emt 0:00:19]} Ne4 {[%emt 0:00:44]} 8. Qg4 {[%emt 0:00:21]} Kf8 {[%emt 0:00:39]} 9. Bd3 {[%emt 0:00:57]} Nxd2 {[%emt 0:00:34]} 10. Kxd2 {[%emt 0:00:05]} Qg5+ {[%emt 0:14:24]} 11. Qxg5 {[%emt 0:00:34]} hxg5 {[%emt 0:00:05]} 12. Nh3 {[%emt 0:01:27]} f6 {[%emt 0:01:16]} 13. f4 {[%emt 0:01:01]} g4 {[%emt 0:00:45]} 14. Nf2 {[%emt 0:00:15]} f5 {[%emt 0:00:34]} 15. h3 {[%emt 0:00:14]} gxh3 {[%emt 0:00:58]} 16. Nxh3 {[%emt 0:01:00]} c5 {[%emt 0:15:42]} 17. Ng5 {[%emt 0:00:28]} Rg8 {[%emt 0:02:30]} 18. g4 {[%emt 0:00:59]} Nc6 {[%emt 0:02:17]} 19. gxf5 {[%emt 0:03:10]} exf5 {[%emt 0:01:18]} 20. c4 {[%emt 0:01:11]} Nxd4 {[%emt 0:18:41]} 21. cxd5 {[%emt 0:01:37]} a6 {[%emt 0:02:18]} 22. c3 {[%emt 0:02:01]} Nb5 {[%emt 0:00:33]} 23. a4 {[%emt 0:00:13]} Nc7 {[%emt 0:00:24]} 24. Bc4 {[%emt 0:00:24]} b5 {[%emt 0:01:06]} 25. axb5 {[%emt 0:01:32]} axb5 {[%emt 0:00:06]} 26. Rxa8 {[%emt 0:00:14]} Nxa8 {[%emt 0:00:15]} 27. Bxb5 {[%emt 0:00:09]} Bb7 {[%emt 0:02:57]} 28. c4 {[%emt 0:01:46]} Nc7 {[%emt 0:04:45]} 29. Bd7 {[%emt 0:00:35]} Ke7 {[%emt 0:10:52]} 30. Bxf5 {[%emt 0:01:38]} Nxd5 {[%emt 0:01:54]} 31. cxd5 {[%emt 0:00:19]} Bxd5 {[%emt 0:00:10]} 32. Ra1 {[%emt 0:00:41]} Rb8 {[%emt 0:03:22]} 33. Ra7+ {[%emt 0:00:22]} Kf8 {[%emt 0:01:07]} 34. e6 {[%emt 0:03:03]} Rb2+ {[%emt 0:02:56]} 35. Ke1 {[%emt 0:00:17]} Rb7 {[%emt 0:01:44]} 36. Ra8+ {[%emt 0:01:05]} Ke7 {[%emt 0:00:08]} 37. Rg8 {[%emt 0:00:37]} Kf6 {[%emt 0:00:54]} 38. Rf8+ {[%emt 0:00:21]} Ke7 {[%emt 0:00:07]} 39. Rf7+ {[%emt 0:00:33]} Ke8 {[%emt 0:00:38]} 40. Rxb7 {[%emt 0:00:00]} Bxb7 {[%emt 0:00:05]} 41. Be4 {[%emt 0:02:08]} Bc8 {[%emt 0:01:03]} 42. Bd5 {[%emt 0:01:46]} Ke7 {[%emt 0:00:20]} 43. Kd2 {[%emt 0:02:09]} Kf6 {[%emt 0:01:08]} 44. Ne4+ {[%emt 0:00:57]} Ke7 {[%emt 0:00:10]} 45. f5 {[%emt 0:00:23]} c4 {[%emt 0:00:39]} 46. Kc3 {[%emt 0:02:01]} Ba6 {[%emt 0:00:37]} 47. Bxc4 {[%emt 0:01:24]} Bb7 {[%emt 0:01:57]} 48. Kd4 {[%emt 0:00:15]} Bc6 {[%emt 0:00:35]} 49. Ke5 {[%emt 0:00:34]} Ba4 {[%emt 0:01:00]} 50. Nc3 {[%emt 0:00:22]} Bc6 {[%emt 0:00:18]} 51. Bd5 {[%emt 0:00:13]} Be8 {[%emt 0:00:18]} 52. Be4 {[%emt 0:00:19]} Bh5 {[%emt 0:00:18]} 53. Nd5+ {[%emt 0:00:08]} Ke8 {[%emt 0:00:14]} 54. Kd6 {[%emt 0:00:15]} Kd8 {[%emt 0:00:21]} 55. Nb6 {[%emt 0:00:41]} Ke8 {[%emt 0:01:11]} 56. Bc6+ {[%emt 0:01:06]} Kf8 {[%emt 0:00:09]} 57. e7+ {[%emt 0:00:05]} Kg8 {[%emt 0:00:09]} 58. Kd7 {[%emt 0:00:32]} Bf7 {[%emt 0:00:39]} 59. Bd5 {[%emt 0:00:20]} 1-0

[Event "EYCC 2017"]
[Site "Mamaia"]
[Date "2017.09.08"]
[Round "4"]
[White "Posuniak, Weronika"]
[Black "Kanakova, Natalie"]
[Result "1/2-1/2"]
[ECO "E38"]
[WhiteElo "1856"]
[BlackElo "2186"]
[Annotator "NA"]
[PlyCount "146"]
[EventDate "2017.??.??"]
[EventType "swiss"]
[EventCountry "ROU"]
[SourceTitle "playchess.com"]
[Source "ChessBase"]
[SourceQuality "1"]
[TimeControl "40/5400+30:1800+30"]

1. d4 {[%emt 0:00:00]} Nf6 {[%emt 0:00:06]} 2. c4 {[%emt 0:00:00]} e6 {[%emt 0:00:04]} 3. Nc3 {[%emt 0:00:00]} Bb4 {[%emt 0:00:05]} 4. Qc2 {[%emt 0:00:00]} c5 {[%emt 0:00:18]} 5. e3 {[%emt 0:02:14]} O-O {[%emt 0:04:27]} 6. a3 {[%emt 0:01:30]} Bxc3+ {[%emt 0:00:20]} 7. Qxc3 {[%emt 0:00:10]} b6 {[%emt 0:06:48]} 8. Nf3 {[%emt 0:02:51]} Bb7 {[%emt 0:02:29]} 9. b4 {[%emt 0:02:14]} Ne4 {[%emt 0:03:50]} 10. Qc2 {[%emt 0:01:22]} d6 {[%emt 0:07:44]} 11. Bd3 {[%emt 0:04:10]} f5 {[%emt 0:00:15]} 12. Bb2 {[%emt 0:02:21]} Nd7 {[%emt 0:02:12]} 13. Rd1 {[%emt 0:08:04]} Ng5 {[%emt 0:06:20]} 14. d5 {[%emt 0:03:27]} Nxf3+ {[%emt 0:20:39]} 15. gxf3 {[%emt 0:00:10]} Ne5 {[%emt 0:00:25]} 16. Bxe5 {[%emt 0:22:11]} dxe5 {[%emt 0:00:05]} 17. bxc5 {[%emt 0:00:21]} bxc5 {[%emt 0:01:15]} 18. Qb2 {[%emt 0:00:32]} Qa5+ {[%emt 0:18:33]} 19. Ke2 {[%emt 0:00:42]} e4 {[%emt 0:00:40]} 20. fxe4 {[%emt 0:02:42]} fxe4 {[%emt 0:00:05]} 21. Bxe4 {[%emt 0:01:02]} exd5 {[%emt 0:02:46]} 22. Rhg1 {[%emt 0:08:52]} Rf7 {[%emt 0:01:41]} 23. Bxd5 {[%emt 0:00:59]} Bxd5 {[%emt 0:00:05]} 24. Rxd5 {[%emt 0:00:05]} Raf8 {[%emt 0:01:20]} 25. f4 {[%emt 0:01:05]} Qa6 {[%emt 0:04:10]} 26. Rxc5 {[%emt 0:01:58]} Qh6 {[%emt 0:00:09]} 27. Rg2 {[%emt 0:00:27]} Qh3 {[%emt 0:00:41]} 28. Rcg5 {[%emt 0:01:07]} g6 {[%emt 0:02:15]} 29. Qe5 {[%emt 0:01:52]} Qd7 {[%emt 0:02:47]} 30. Qd5 {[%emt 0:00:56]} Qe7 {[%emt 0:03:16]} 31. c5 {[%emt 0:02:36]} Rd8 {[%emt 0:01:51]} 32. Qc4 {[%emt 0:00:51]} Qd7 {[%emt 0:00:31]} 33. Qc2 {[%emt 0:04:14]} Qb5+ {[%emt 0:00:53]} 34. Kf3 {[%emt 0:02:35]} Qf1+ {[%emt 0:00:37]} 35. Rf2 {[%emt 0:00:47]} Qh3+ {[%emt 0:00:27]} 36. Ke2 {[%emt 0:00:56]} Re8 {[%emt 0:01:32]} 37. Qb3 {[%emt 0:00:31]} Kg7 {[%emt 0:00:58]} 38. c6 {[%emt 0:01:39]} Rfe7 {[%emt 0:01:36]} 39. Qc3+ {[%emt 0:01:04]} Kg8 {[%emt 0:03:51]} 40. Rg3 {[%emt 0:00:00]} Qh5+ {[%emt 0:00:11]} 41. Ke1 {[%emt 0:01:57]} Rb8 {[%emt 0:08:34]} 42. Rb2 {[%emt 0:02:18]} Rxb2 {[%emt 0:01:20]} 43. Qxb2 {[%emt 0:00:06]} Qc5 {[%emt 0:00:41]} 44. Qb4 {[%emt 0:03:01]} Qc1+ {[%emt 0:01:25]} 45. Ke2 {[%emt 0:01:08]} Qc2+ {[%emt 0:00:16]} 46. Qd2 {[%emt 0:00:29]} Qxc6 {[%emt 0:00:29]} 47. Rg5 {[%emt 0:00:32]} Rd7 {[%emt 0:02:27]} 48. Qa2+ {[%emt 0:02:38]} Kg7 {[%emt 0:03:00]} 49. Qb2+ {[%emt 0:00:44]} Kh6 {[%emt 0:03:46]} 50. Rg4 {[%emt 0:05:11]} Qc4+ {[%emt 0:03:15]} 51. Kf2 {[%emt 0:00:29]} Rd5 {[%emt 0:01:56]} 52. Rh4+ {[%emt 0:00:29]} Rh5 {[%emt 0:00:04]} 53. Rxh5+ {[%emt 0:00:19]} Kxh5 {[%emt 0:00:03]} 54. Qe2+ {[%emt 0:00:25]} Qxe2+ {[%emt 0:00:04]} 55. Kxe2 {[%emt 0:00:02]} Kg4 {[%emt 0:00:17]} 56. h3+ {[%emt 0:01:30]} Kxh3 {[%emt 0:04:39]} 57. Kf3 {[%emt 0:05:35]} h6 {[%emt 0:00:39]} 58. e4 {[%emt 0:03:11]} g5 {[%emt 0:00:14]} 59. f5 {[%emt 0:00:27]} g4+ {[%emt 0:00:05]} 60. Ke2 {[%emt 0:00:10]} g3 {[%emt 0:00:26]} 61. f6 {[%emt 0:00:04]} g2 {[%emt 0:00:09]} 62. f7 {[%emt 0:00:16]} g1=Q {[%emt 0:00:14]} 63. f8=Q {[%emt 0:00:23]} Qg2+ {[%emt 0:00:57]} 64. Kd3 {[%emt 0:04:12]} Qg3+ {[%emt 0:01:09]} 65. Kd4 {[%emt 0:00:38]} Qg1+ {[%emt 0:02:29]} 66. Kd5 {[%emt 0:00:36]} Qd1+ {[%emt 0:00:24]} 67. Ke6 {[%emt 0:01:37]} Qb3+ {[%emt 0:00:31]} 68. Kd7 {[%emt 0:02:16]} Qb7+ {[%emt 0:02:33]} 69. Kd6 {[%emt 0:01:17]} Qb6+ {[%emt 0:00:18]} 70. Kd5 {[%emt 0:00:57]} Qb3+ {[%emt 0:00:26]} 71. Kc6 {[%emt 0:00:27]} Qb6+ {[%emt 0:00:10]} 72. Kd5 {[%emt 0:00:30]} Qb3+ {[%emt 0:00:04]} 73. Kc6 {[%emt 0:01:02]} Qb6+ {[%emt 0:00:06]} 1/2-1/2

[Event "EYCC 2017"]
[Site "Mamaia"]
[Date "2017.09.08"]
[Round "4"]
[White "Khamenya, Vitalia"]
[Black "Hercog, Nusa"]
[Result "0-1"]
[ECO "B21"]
[WhiteElo "1853"]
[BlackElo "2034"]
[Annotator "NA"]
[PlyCount "77"]
[EventDate "2017.??.??"]
[EventType "swiss"]
[EventCountry "ROU"]
[SourceTitle "playchess.com"]
[Source "ChessBase"]
[SourceQuality "1"]
[TimeControl "40/5400+30:1800+30"]

1. e4 {[%emt 0:00:00]} c5 {[%emt 0:00:09]} 2. d4 {[%emt 0:00:00]} cxd4 {[%emt 0:00:15]} 3. c3 {[%emt 0:00:00]} dxc3 {[%emt 0:00:17]} 4. Nxc3 {[%emt 0:00:00]} Nc6 {[%emt 0:02:55]} 5. Nf3 {[%emt 0:00:12]} e6 {[%emt 0:00:25]} 6. Bc4 {[%emt 0:00:18]} Qc7 {[%emt 0:00:39]} 7. O-O {[%emt 0:01:41]} Nf6 {[%emt 0:00:33]} 8. Qe2 {[%emt 0:05:14]} Ng4 {[%emt 0:01:23]} 9. Rd1 {[%emt 0:08:45]} Bc5 {[%emt 0:04:17]} 10. Be3 {[%emt 0:25:26]} Nxe3 {[%emt 0:03:49]} 11. fxe3 {[%emt 0:04:34]} a6 {[%emt 0:03:38]} 12. a3 {[%emt 0:08:13]} b5 {[%emt 0:04:39]} 13. Ba2 {[%emt 0:03:06]} O-O {[%emt 0:06:54]} 14. b4 {[%emt 0:01:15]} Ba7 {[%emt 0:01:10]} 15. Rac1 {[%emt 0:00:27]} Qf4 {[%emt 0:04:48]} 16. Nd4 {[%emt 0:03:01]} Nxd4 {[%emt 0:06:52]} 17. exd4 {[%emt 0:00:48]} Bxd4+ {[%emt 0:01:11]} 18. Kh1 {[%emt 0:01:17]} Bb7 {[%emt 0:05:08]} 19. Rf1 {[%emt 0:03:39]} Qe5 {[%emt 0:02:41]} 20. Rf3 {[%emt 0:06:28]} Bxc3 {[%emt 0:02:31]} 21. Rfxc3 {[%emt 0:00:45]} Qxe4 {[%emt 0:00:41]} 22. Qxe4 {[%emt 0:01:02]} Bxe4 {[%emt 0:00:06]} 23. Kg1 {[%emt 0:01:10]} a5 {[%emt 0:01:37]} 24. Bb3 {[%emt 0:01:30]} axb4 {[%emt 0:00:47]} 25. axb4 {[%emt 0:00:05]} Bb7 {[%emt 0:01:10]} 26. Kf2 {[%emt 0:03:09]} Rfc8 {[%emt 0:00:28]} 27. Rc5 {[%emt 0:03:36]} d6 {[%emt 0:05:18]} 28. Rc7 {[%emt 0:00:55]} Kf8 {[%emt 0:01:31]} 29. R1c2 {[%emt 0:00:56]} Rxc7 {[%emt 0:01:04]} 30. Rxc7 {[%emt 0:00:06]} Be4 {[%emt 0:00:27]} 31. g3 {[%emt 0:02:31]} Ra3 {[%emt 0:01:13]} 32. Bd1 {[%emt 0:01:05]} Bd3 {[%emt 0:00:54]} 33. Rb7 {[%emt 0:04:56]} Ra1 {[%emt 0:01:21]} 34. Bf3 {[%emt 0:00:36]} Rb1 {[%emt 0:03:07]} 35. Ke3 {[%emt 0:03:17]} Bc4 {[%emt 0:01:09]} 36. Rb8+ {[%emt 0:00:37]} Ke7 {[%emt 0:00:05]} 37. Rh8 {[%emt 0:00:25]} h6 {[%emt 0:00:51]} 38. Rg8 {[%emt 0:00:26]} Kf6 {[%emt 0:00:30]} 39. Kd4 {Ke5+} 0-1

[Event "EYCC 2017"]
[Site "Mamaia"]
[Date "2017.09.08"]
[Round "4"]
[White "Bui, Ngoc Han Julia"]
[Black "Norlamo, Sarabella"]
[Result "1/2-1/2"]
[ECO "C10"]
[WhiteElo "1850"]
[BlackElo "1807"]
[Annotator "NA"]
[PlyCount "45"]
[EventDate "2017.??.??"]
[EventType "swiss"]
[EventCountry "ROU"]
[SourceTitle "playchess.com"]
[Source "ChessBase"]
[SourceQuality "1"]
[TimeControl "40/5400+30:1800+30"]

1. e4 {[%emt 0:00:00]} e6 {[%emt 0:00:08]} 2. d4 {[%emt 0:00:00]} d5 {[%emt 0:00:08]} 3. Nd2 {[%emt 0:00:17]} dxe4 {[%emt 0:00:08]} 4. Nxe4 {[%emt 0:00:12]} Bd7 {[%emt 0:00:09]} 5. Nf3 {[%emt 0:00:16]} Bc6 {[%emt 0:00:14]} 6. Bd3 {[%emt 0:00:48]} Nd7 {[%emt 0:00:08]} 7. Qe2 {[%emt 0:02:19]} Ngf6 {[%emt 0:01:32]} 8. Nxf6+ {[%emt 0:01:49]} Nxf6 {[%emt 0:01:15]} 9. O-O {[%emt 0:06:17]} Be7 {[%emt 0:07:26]} 10. Bf4 {[%emt 0:05:39]} O-O {[%emt 0:02:36]} 11. c3 {[%emt 0:00:57]} b6 {[%emt 0:03:52]} 12. Rad1 {[%emt 0:06:15]} Bb7 {[%emt 0:04:54]} 13. Rfe1 {[%emt 0:07:11]} Bd6 {[%emt 0:05:30]} 14. Ne5 {[%emt 0:05:54]} Qe7 {[%emt 0:17:11]} 15. Bg5 {[%emt 0:06:53]} h6 {[%emt 0:01:27]} 16. Bh4 {[%emt 0:02:44]} Qd8 {[%emt 0:01:46]} 17. Bc4 {[%emt 0:08:48]} Be7 {[%emt 0:10:32]} 18. Nxf7 {[%emt 0:13:50]} Rxf7 {[%emt 0:19:00]} 19. Bxe6 {[%emt 0:04:21]} Bd6 {[%emt 0:01:03]} 20. Bxf7+ {[%emt 0:13:25]} Kxf7 {[%emt 0:00:01]} 21. Qe6+ {[%emt 0:01:49]} Kf8 {[%emt 0:01:25]} 22. d5 {[%emt 0:02:31]} Qe7 {[%emt 0:09:15]} 23. Qf5 {[%emt 0:03:03]} 1/2-1/2